[Event "December 19 Early 2023"]
[Site "https://www.chess.com"]
[Date "2023.12.19"]
[Round "2"]
[White "Wadsworth, Matthew J"]
[Black "Vachier-Lagrave, Maxime"]
[Result "0-1"]
[Board "3"]
[TimeControl "180+1"]
[WhiteFideId "415804"]
[BlackFideId "623539"]
[WhiteElo "2266"]
[BlackElo "2748"]
[WhiteTeam "ENG"]
[BlackTeam "FRA"]
[WhiteClock "0:00:03"]
[BlackClock "0:00:43"]

1. c4 {[%clk 0:03:00]}  e5 {[%clk 0:02:57]} 2. g3 {[%clk 0:02:58]}  h5 {[%clk 0:02:53]} 3. Nc3 {[%clk 0:02:57]}  h4 {[%clk 0:02:51]} 4. g4 {[%clk 0:02:58]}  d6 {[%clk 0:02:43]} 5. h3 {[%clk 0:02:56]}  f5 {[%clk 0:02:39]} 6. gxf5 {[%clk 0:02:54]}  Bxf5 {[%clk 0:02:38]} 7. Bg2 {[%clk 0:02:53]}  Nc6 {[%clk 0:02:38]} 8. d3 {[%clk 0:02:52]}  Be7 {[%clk 0:02:33]} 9. Nf3 {[%clk 0:02:42]}  Nf6 {[%clk 0:02:28]} 10. Bg5 {[%clk 0:02:38]}  Nh5 {[%clk 0:02:26]} 11. Bxe7 {[%clk 0:02:34]}  Nxe7 {[%clk 0:02:27]} 12. e3 {[%clk 0:02:26]}  Nf6 {[%clk 0:02:22]} 13. Qe2 {[%clk 0:02:20]}  c6 {[%clk 0:02:17]} 14. O-O-O {[%clk 0:02:09]}  Ng6 {[%clk 0:02:14]} 15. d4 {[%clk 0:02:01]}  e4 {[%clk 0:02:12]} 16. Nd2 {[%clk 0:01:50]}  Qe7 {[%clk 0:02:08]} 17. f3 {[%clk 0:01:39]}  exf3 {[%clk 0:02:05]} 18. Bxf3 {[%clk 0:01:30]}  O-O-O {[%clk 0:02:00]} 19. Rdg1 {[%clk 0:01:13]}  Nf8 {[%clk 0:01:42]} 20. e4 {[%clk 0:01:08]}  Bh7 {[%clk 0:01:42]} 21. e5 {[%clk 0:00:56]}  dxe5 {[%clk 0:01:42]} 22. dxe5 {[%clk 0:00:57]}  N6d7 {[%clk 0:01:42]} 23. Qg2 {[%clk 0:00:37]}  Nxe5 {[%clk 0:01:38]} 24. Be4 {[%clk 0:00:33]}  Bxe4 {[%clk 0:01:21]} 25. Ndxe4 {[%clk 0:00:33]}  Ne6 {[%clk 0:01:19]} 26. Kb1 {[%clk 0:00:25]}  Nxc4 {[%clk 0:01:17]} 27. Re1 {[%clk 0:00:21]}  Rhe8 {[%clk 0:01:10]} 28. b3 {[%clk 0:00:14]}  Ne5 {[%clk 0:01:06]} 29. Rhf1 {[%clk 0:00:10]}  Qc7 {[%clk 0:01:04]} 30. Ng5 {[%clk 0:00:09]}  Nd4 {[%clk 0:01:00]} 31. Qf2 {[%clk 0:00:04]}  Kb8 {[%clk 0:00:55]} 32. Qxh4 {[%clk 0:00:04]}  Qa5 {[%clk 0:00:45]} 33. Kb2 {[%clk 0:00:03]}  Nd3+ {[%clk 0:00:43]} 0-1

[Event "December 19 Early 2023"]
[Site "https://www.chess.com"]
[Date "2023.12.19"]
[Round "2"]
[White "Espinoza Villanueva, Rodrigo"]
[Black "Naroditsky, Daniel"]
[Result "0-1"]
[Board "5"]
[TimeControl "180+1"]
[WhiteFideId "5140188"]
[BlackFideId "2026961"]
[WhiteElo "1907"]
[BlackElo "2639"]
[WhiteTeam "MEX"]
[BlackTeam "USA"]
[WhiteClock "0:00:23"]
[BlackClock "0:00:08"]

1. d4 {[%clk 0:03:00]}  Nf6 {[%clk 0:02:53]} 2. c4 {[%clk 0:02:59]}  g6 {[%clk 0:02:52]} 3. Nc3 {[%clk 0:02:57]}  Bg7 {[%clk 0:02:51]} 4. e4 {[%clk 0:02:56]}  d6 {[%clk 0:02:52]} 5. Be2 {[%clk 0:02:56]}  O-O {[%clk 0:02:51]} 6. Nf3 {[%clk 0:02:54]}  e5 {[%clk 0:02:49]} 7. d5 {[%clk 0:02:53]}  a5 {[%clk 0:02:40]} 8. O-O {[%clk 0:02:52]}  Na6 {[%clk 0:02:39]} 9. Be3 {[%clk 0:02:51]}  Ng4 {[%clk 0:02:28]} 10. Bg5 {[%clk 0:02:51]}  f6 {[%clk 0:02:28]} 11. Bd2 {[%clk 0:02:46]}  Nh6 {[%clk 0:02:23]} 12. Ne1 {[%clk 0:02:36]}  f5 {[%clk 0:02:22]} 13. Nd3 {[%clk 0:02:34]}  f4 {[%clk 0:02:17]} 14. a3 {[%clk 0:02:31]}  g5 {[%clk 0:02:14]} 15. b4 {[%clk 0:02:30]}  g4 {[%clk 0:02:13]} 16. f3 {[%clk 0:02:30]}  g3 {[%clk 0:02:09]} 17. c5 {[%clk 0:02:28]}  Qh4 {[%clk 0:02:00]} 18. h3 {[%clk 0:02:16]}  Bxh3 {[%clk 0:02:00]} 19. gxh3 {[%clk 0:02:16]}  Qxh3 {[%clk 0:02:01]} 20. Rf2 {[%clk 0:02:17]}  gxf2+ {[%clk 0:02:01]} 21. Nxf2 {[%clk 0:02:18]}  Qg3+ {[%clk 0:01:59]} 22. Kf1 {[%clk 0:02:17]}  axb4 {[%clk 0:01:33]} 23. axb4 {[%clk 0:02:17]}  dxc5 {[%clk 0:01:34]} 24. bxc5 {[%clk 0:02:10]}  Nxc5 {[%clk 0:01:30]} 25. Nb5 {[%clk 0:01:41]}  Rxa1 {[%clk 0:01:08]} 26. Qxa1 {[%clk 0:01:42]}  Nb3 {[%clk 0:01:08]} 27. Qc3 {[%clk 0:01:37]}  Nxd2+ {[%clk 0:01:08]} 28. Qxd2 {[%clk 0:01:38]}  Bf6 {[%clk 0:01:09]} 29. Nxc7 {[%clk 0:01:31]}  Bh4 {[%clk 0:01:09]} 30. Bc4 {[%clk 0:01:28]}  Qxf3 {[%clk 0:00:50]} 31. d6+ {[%clk 0:01:21]}  Kh8 {[%clk 0:00:50]} 32. d7 {[%clk 0:01:11]}  Ng4 {[%clk 0:00:38]} 33. Qe2 {[%clk 0:00:52]}  Ne3+ {[%clk 0:00:30]} 34. Ke1 {[%clk 0:00:41]}  Bxf2+ {[%clk 0:00:30]} 35. Kd2 {[%clk 0:00:37]}  Nxc4+ {[%clk 0:00:23]} 36. Qxc4 {[%clk 0:00:37]}  Qe3+ {[%clk 0:00:20]} 37. Kc2 {[%clk 0:00:35]}  Qc5 {[%clk 0:00:06]} 38. Qxc5 {[%clk 0:00:27]}  Bxc5 {[%clk 0:00:07]} 39. Ne6 {[%clk 0:00:27]}  Rg8 {[%clk 0:00:08]} 40. Nxc5 {[%clk 0:00:23]}  Rd8 {[%clk 0:00:08]} 0-1

[Event "December 19 Early 2023"]
[Site "https://www.chess.com"]
[Date "2023.12.19"]
[Round "2"]
[White "So, Wesley"]
[Black "Chor, Kevin"]
[Result "1-0"]
[Board "8"]
[TimeControl "180+1"]
[WhiteFideId "5202213"]
[BlackFideId "2090740"]
[WhiteElo "2767"]
[BlackElo "2633"]
[WhiteTeam "USA"]
[BlackTeam "USA"]
[WhiteClock "0:00:36"]
[BlackClock "0:00:17"]

1. Nf3 {[%clk 0:02:18]}  c5 {[%clk 0:02:58]} 2. e4 {[%clk 0:02:18]}  g6 {[%clk 0:02:57]} 3. c3 {[%clk 0:02:17]}  Bg7 {[%clk 0:02:56]} 4. d4 {[%clk 0:02:16]}  cxd4 {[%clk 0:02:57]} 5. cxd4 {[%clk 0:02:17]}  d5 {[%clk 0:02:57]} 6. e5 {[%clk 0:02:16]}  Bg4 {[%clk 0:02:57]} 7. Nbd2 {[%clk 0:02:14]}  Nc6 {[%clk 0:02:54]} 8. Bb5 {[%clk 0:02:12]}  Qb6 {[%clk 0:02:47]} 9. Bxc6+ {[%clk 0:02:04]}  Qxc6 {[%clk 0:02:48]} 10. h3 {[%clk 0:02:02]}  Bf5 {[%clk 0:02:44]} 11. O-O {[%clk 0:02:02]}  Nh6 {[%clk 0:02:32]} 12. Re1 {[%clk 0:02:01]}  O-O {[%clk 0:02:31]} 13. Nf1 {[%clk 0:02:00]}  Be4 {[%clk 0:02:24]} 14. Ng3 {[%clk 0:01:58]}  Nf5 {[%clk 0:02:21]} 15. Nxf5 {[%clk 0:01:58]}  Bxf5 {[%clk 0:02:21]} 16. Bd2 {[%clk 0:01:51]}  Qb6 {[%clk 0:02:14]} 17. Bc3 {[%clk 0:01:45]}  Rac8 {[%clk 0:02:14]} 18. Qd2 {[%clk 0:01:44]}  Be4 {[%clk 0:02:08]} 19. Ng5 {[%clk 0:01:38]}  Bh6 {[%clk 0:02:07]} 20. f4 {[%clk 0:01:22]}  Bxg5 {[%clk 0:02:05]} 21. fxg5 {[%clk 0:01:23]}  f6 {[%clk 0:01:49]} 22. exf6 {[%clk 0:01:12]}  exf6 {[%clk 0:01:49]} 23. Rf1 {[%clk 0:01:12]}  f5 {[%clk 0:01:34]} 24. Rac1 {[%clk 0:01:03]}  Rc6 {[%clk 0:01:22]} 25. Ba5 {[%clk 0:01:02]}  Qb5 {[%clk 0:01:06]} 26. Rxc6 {[%clk 0:01:01]}  Qxc6 {[%clk 0:01:07]} 27. Rc1 {[%clk 0:01:01]}  Qa6 {[%clk 0:01:07]} 28. Bb4 {[%clk 0:00:55]}  Rf7 {[%clk 0:01:02]} 29. Rc8+ {[%clk 0:00:50]}  Kg7 {[%clk 0:01:02]} 30. Qf4 {[%clk 0:00:51]}  Qe6 {[%clk 0:00:58]} 31. Qb8 {[%clk 0:00:48]}  Rd7 {[%clk 0:00:45]} 32. Rh8 {[%clk 0:00:37]}  Qf7 {[%clk 0:00:35]} 33. Rf8 {[%clk 0:00:36]}  Qe6 {[%clk 0:00:17]} 34. Rf6 {[%clk 0:00:36]} 1-0

[Event "December 19 Early 2023"]
[Site "https://www.chess.com"]
[Date "2023.12.19"]
[Round "2"]
[White "Graca, Robert"]
[Black "Pranav, V"]
[Result "0-1"]
[Board "10"]
[TimeControl "180+1"]
[WhiteFideId "644943"]
[BlackFideId "25060783"]
[WhiteElo "2204"]
[BlackElo "2562"]
[WhiteTeam "FRA"]
[BlackTeam "IND"]
[WhiteClock "0:00:05"]
[BlackClock "0:00:47"]

1. Nf3 {[%clk 0:02:58]}  d5 {[%clk 0:02:59]} 2. d4 {[%clk 0:02:57]}  c5 {[%clk 0:02:58]} 3. c4 {[%clk 0:02:58]}  e6 {[%clk 0:02:58]} 4. cxd5 {[%clk 0:02:58]}  exd5 {[%clk 0:02:58]} 5. Nc3 {[%clk 0:02:59]}  Nf6 {[%clk 0:02:58]} 6. g3 {[%clk 0:02:59]}  Nc6 {[%clk 0:02:58]} 7. Bg2 {[%clk 0:03:00]}  Be7 {[%clk 0:02:59]} 8. O-O {[%clk 0:03:00]}  O-O {[%clk 0:02:59]} 9. Bg5 {[%clk 0:03:01]}  c4 {[%clk 0:02:59]} 10. Ne5 {[%clk 0:03:00]}  Be6 {[%clk 0:03:00]} 11. b3 {[%clk 0:02:58]}  h6 {[%clk 0:02:55]} 12. Nxc6 {[%clk 0:02:56]}  bxc6 {[%clk 0:02:55]} 13. Bd2 {[%clk 0:02:56]}  cxb3 {[%clk 0:02:53]} 14. axb3 {[%clk 0:02:56]}  Qd7 {[%clk 0:02:54]} 15. Re1 {[%clk 0:02:51]}  Rfe8 {[%clk 0:02:53]} 16. Rc1 {[%clk 0:02:44]}  Bh3 {[%clk 0:02:50]} 17. Bh1 {[%clk 0:02:44]}  Ba3 {[%clk 0:02:47]} 18. Ra1 {[%clk 0:02:38]}  Bd6 {[%clk 0:02:46]} 19. Rc1 {[%clk 0:02:32]}  Qf5 {[%clk 0:02:42]} 20. Na4 {[%clk 0:02:22]}  Rac8 {[%clk 0:02:39]} 21. Nc5 {[%clk 0:02:18]}  Bxc5 {[%clk 0:02:36]} 22. dxc5 {[%clk 0:01:59]}  Ne4 {[%clk 0:02:35]} 23. Be3 {[%clk 0:01:57]}  Rb8 {[%clk 0:02:34]} 24. Bd4 {[%clk 0:01:48]}  a5 {[%clk 0:02:32]} 25. Qd3 {[%clk 0:01:42]}  Qe6 {[%clk 0:02:25]} 26. Ra1 {[%clk 0:01:38]}  Rb5 {[%clk 0:02:23]} 27. Rec1 {[%clk 0:01:25]}  Bf5 {[%clk 0:02:17]} 28. Qe3 {[%clk 0:01:19]}  Qd7 {[%clk 0:02:17]} 29. Qf3 {[%clk 0:01:05]}  Ng5 {[%clk 0:02:16]} 30. Qc3 {[%clk 0:01:03]}  Rxe2 {[%clk 0:02:12]} 31. Kf1 {[%clk 0:00:41]}  Qe6 {[%clk 0:01:31]} 32. Bxg7 {[%clk 0:00:40]}  Bh3+ {[%clk 0:01:31]} 33. Kg1 {[%clk 0:00:41]}  Bg4 {[%clk 0:01:31]} 34. Bd4 {[%clk 0:00:30]}  Rb4 {[%clk 0:01:24]} 35. Be3 {[%clk 0:00:19]}  d4 {[%clk 0:01:19]} 36. Bxd4 {[%clk 0:00:16]}  Nh3+ {[%clk 0:01:02]} 37. Kf1 {[%clk 0:00:11]}  Qf5 {[%clk 0:00:59]} 38. f4 {[%clk 0:00:07]}  Rxh2 {[%clk 0:00:55]} 39. Bxc6 {[%clk 0:00:07]}  Nxf4 {[%clk 0:00:53]} 40. gxf4 {[%clk 0:00:04]}  Qxf4+ {[%clk 0:00:54]} 41. Kg1 {[%clk 0:00:04]}  Rxd4 {[%clk 0:00:49]} 42. Rxa5 {[%clk 0:00:05]}  Qf2# {[%clk 0:00:47]} 0-1

[Event "December 19 Early 2023"]
[Site "https://www.chess.com"]
[Date "2023.12.19"]
[Round "2"]
[White "Keymer, Vincent"]
[Black "Ambartsumova, Karina"]
[Result "1-0"]
[Board "13"]
[TimeControl "180+1"]
[WhiteFideId "12940690"]
[BlackFideId "4166299"]
[WhiteElo "2629"]
[BlackElo "2240"]
[WhiteTeam "GER"]
[BlackTeam "RUS"]
[WhiteClock "0:01:24"]
[BlackClock "0:00:14"]

1. a3 {[%clk 0:03:00]}  e5 {[%clk 0:02:58]} 2. c4 {[%clk 0:03:00]}  f5 {[%clk 0:02:55]} 3. b4 {[%clk 0:02:59]}  Nf6 {[%clk 0:02:54]} 4. Bb2 {[%clk 0:03:00]}  d6 {[%clk 0:02:52]} 5. e3 {[%clk 0:02:57]}  Be7 {[%clk 0:02:49]} 6. d3 {[%clk 0:02:43]}  O-O {[%clk 0:02:48]} 7. Nf3 {[%clk 0:02:44]}  Kh8 {[%clk 0:02:41]} 8. Be2 {[%clk 0:02:44]}  Be6 {[%clk 0:02:41]} 9. O-O {[%clk 0:02:41]}  Nbd7 {[%clk 0:02:37]} 10. Nc3 {[%clk 0:02:41]}  c6 {[%clk 0:02:32]} 11. Rc1 {[%clk 0:02:41]}  a6 {[%clk 0:02:29]} 12. h3 {[%clk 0:02:22]}  Rc8 {[%clk 0:02:09]} 13. Nb1 {[%clk 0:02:02]}  b5 {[%clk 0:01:50]} 14. Nbd2 {[%clk 0:01:55]}  Nb6 {[%clk 0:01:28]} 15. c5 {[%clk 0:01:52]}  Na4 {[%clk 0:01:28]} 16. cxd6 {[%clk 0:01:48]}  Nxb2 {[%clk 0:01:08]} 17. dxe7 {[%clk 0:01:48]}  Qxe7 {[%clk 0:01:08]} 18. Qc2 {[%clk 0:01:47]}  Na4 {[%clk 0:01:05]} 19. Nxe5 {[%clk 0:01:47]}  c5 {[%clk 0:01:02]} 20. Qb1 {[%clk 0:01:43]}  Qd6 {[%clk 0:00:59]} 21. Nef3 {[%clk 0:01:35]}  cxb4 {[%clk 0:00:39]} 22. Qxb4 {[%clk 0:01:34]}  Qxb4 {[%clk 0:00:35]} 23. axb4 {[%clk 0:01:35]}  Nc3 {[%clk 0:00:35]} 24. Nd4 {[%clk 0:01:34]}  Bd7 {[%clk 0:00:31]} 25. N2b3 {[%clk 0:01:30]}  Nfd5 {[%clk 0:00:27]} 26. Nc5 {[%clk 0:01:30]}  Be8 {[%clk 0:00:20]} 27. Bf3 {[%clk 0:01:27]}  a5 {[%clk 0:00:18]} 28. Nce6 {[%clk 0:01:25]}  Rf6 {[%clk 0:00:14]} 29. Bxd5 {[%clk 0:01:24]} 1-0

[Event "December 19 Early 2023"]
[Site "https://www.chess.com"]
[Date "2023.12.19"]
[Round "2"]
[White "Tokhirjonova, Gulrukhbegim"]
[Black "Zemlyanskii, Ivan"]
[Result "0-1"]
[Board "14"]
[TimeControl "180+1"]
[WhiteFideId "14203626"]
[BlackFideId "24249971"]
[WhiteElo "2265"]
[BlackElo "2418"]
[WhiteTeam "USA"]
[BlackTeam "RUS"]
[WhiteClock "0:00:09"]
[BlackClock "0:00:26"]

1. e4 {[%clk 0:02:57]}  c5 {[%clk 0:03:00]} 2. Nf3 {[%clk 0:02:49]}  e6 {[%clk 0:03:00]} 3. Nc3 {[%clk 0:02:48]}  Nc6 {[%clk 0:03:00]} 4. d4 {[%clk 0:02:47]}  cxd4 {[%clk 0:03:01]} 5. Nxd4 {[%clk 0:02:48]}  Nf6 {[%clk 0:03:02]} 6. Nxc6 {[%clk 0:02:43]}  bxc6 {[%clk 0:03:03]} 7. e5 {[%clk 0:02:44]}  Nd5 {[%clk 0:03:03]} 8. Ne4 {[%clk 0:02:44]}  Qc7 {[%clk 0:03:04]} 9. f4 {[%clk 0:02:44]}  Rb8 {[%clk 0:03:04]} 10. a3 {[%clk 0:02:39]}  Qb6 {[%clk 0:03:01]} 11. Qf3 {[%clk 0:02:35]}  Be7 {[%clk 0:02:51]} 12. Bd3 {[%clk 0:02:31]}  Ba6 {[%clk 0:02:32]} 13. c4 {[%clk 0:02:29]}  f5 {[%clk 0:02:22]} 14. exf6 {[%clk 0:02:25]}  Nxf6 {[%clk 0:02:21]} 15. Be3 {[%clk 0:01:38]}  Qb3 {[%clk 0:02:16]} 16. Nxf6+ {[%clk 0:01:10]}  Bxf6 {[%clk 0:02:14]} 17. Qh5+ {[%clk 0:01:10]}  g6 {[%clk 0:01:38]} 18. Qe2 {[%clk 0:01:08]}  Qxb2 {[%clk 0:01:35]} 19. Rd1 {[%clk 0:00:59]}  Qxe2+ {[%clk 0:01:21]} 20. Kxe2 {[%clk 0:00:59]}  Rb3 {[%clk 0:01:19]} 21. a4 {[%clk 0:00:49]}  Kf7 {[%clk 0:01:04]} 22. Bxa7 {[%clk 0:00:40]}  Ra8 {[%clk 0:00:46]} 23. Bc5 {[%clk 0:00:37]}  Bc8 {[%clk 0:00:35]} 24. Rb1 {[%clk 0:00:35]}  Rxb1 {[%clk 0:00:30]} 25. Rxb1 {[%clk 0:00:34]}  Rxa4 {[%clk 0:00:31]} 26. Rb8 {[%clk 0:00:31]}  Ba6 {[%clk 0:00:31]} 27. Rf8+ {[%clk 0:00:26]}  Kg7 {[%clk 0:00:31]} 28. Ra8 {[%clk 0:00:26]}  Ra2+ {[%clk 0:00:29]} 29. Ke3 {[%clk 0:00:23]}  Bxc4 {[%clk 0:00:29]} 30. Bxc4 {[%clk 0:00:21]}  Rxa8 {[%clk 0:00:29]} 31. g4 {[%clk 0:00:18]}  Ra4 {[%clk 0:00:27]} 32. Bd3 {[%clk 0:00:15]}  Kf7 {[%clk 0:00:25]} 33. g5 {[%clk 0:00:15]}  Be7 {[%clk 0:00:26]} 34. Bd4 {[%clk 0:00:14]}  Bd6 {[%clk 0:00:26]} 35. Be5 {[%clk 0:00:10]}  Bxe5 {[%clk 0:00:26]} 36. fxe5 {[%clk 0:00:09]}  Rh4 {[%clk 0:00:26]} 0-1

[Event "December 19 Early 2023"]
[Site "https://www.chess.com"]
[Date "2023.12.19"]
[Round "2"]
[White "Deac, Bogdan-Daniel"]
[Black "Nasir, Zehn"]
[Result "1-0"]
[Board "15"]
[TimeControl "180+1"]
[WhiteFideId "1226380"]
[BlackFideId "2613239"]
[WhiteElo "2641"]
[BlackElo "2004"]
[WhiteTeam "ROU"]
[BlackTeam "CAN"]
[WhiteClock "0:00:08"]
[BlackClock "0:00:07"]

1. b3 {[%clk 0:03:00]}  d5 {[%clk 0:02:59]} 2. Bb2 {[%clk 0:03:01]}  Nf6 {[%clk 0:02:59]} 3. e3 {[%clk 0:03:01]}  c5 {[%clk 0:02:57]} 4. Nf3 {[%clk 0:02:59]}  Nc6 {[%clk 0:02:58]} 5. Bb5 {[%clk 0:02:59]}  Bd7 {[%clk 0:02:57]} 6. O-O {[%clk 0:02:46]}  e6 {[%clk 0:02:57]} 7. Bxc6 {[%clk 0:02:46]}  Bxc6 {[%clk 0:02:54]} 8. Ne5 {[%clk 0:02:47]}  Bd6 {[%clk 0:02:52]} 9. Nxc6 {[%clk 0:02:47]}  bxc6 {[%clk 0:02:52]} 10. d3 {[%clk 0:02:48]}  O-O {[%clk 0:02:51]} 11. Nd2 {[%clk 0:02:47]}  a5 {[%clk 0:02:51]} 12. e4 {[%clk 0:02:44]}  Qc7 {[%clk 0:02:45]} 13. Bxf6 {[%clk 0:02:36]}  gxf6 {[%clk 0:02:35]} 14. Qh5 {[%clk 0:01:30]}  Kh8 {[%clk 0:02:31]} 15. Qh4 {[%clk 0:01:29]}  Be5 {[%clk 0:02:10]} 16. Rae1 {[%clk 0:01:26]}  Rg8 {[%clk 0:02:07]} 17. Re3 {[%clk 0:01:18]}  Rg7 {[%clk 0:01:48]} 18. Rh3 {[%clk 0:01:15]}  a4 {[%clk 0:01:39]} 19. f4 {[%clk 0:00:45]}  Bd4+ {[%clk 0:01:30]} 20. Kh1 {[%clk 0:00:45]}  axb3 {[%clk 0:01:30]} 21. Nxb3 {[%clk 0:00:44]}  Bb2 {[%clk 0:01:20]} 22. Nxc5 {[%clk 0:00:28]}  Rxa2 {[%clk 0:01:15]} 23. f5 {[%clk 0:00:28]}  Bd4 {[%clk 0:01:04]} 24. Nb3 {[%clk 0:00:27]}  Be5 {[%clk 0:01:02]} 25. d4 {[%clk 0:00:23]}  Bd6 {[%clk 0:00:35]} 26. e5 {[%clk 0:00:22]}  Bxe5 {[%clk 0:00:29]} 27. dxe5 {[%clk 0:00:21]}  Qxe5 {[%clk 0:00:30]} 28. fxe6 {[%clk 0:00:22]}  fxe6 {[%clk 0:00:26]} 29. Qf2 {[%clk 0:00:15]}  Qe4 {[%clk 0:00:20]} 30. Rc3 {[%clk 0:00:11]}  d4 {[%clk 0:00:10]} 31. Nxd4 {[%clk 0:00:10]}  c5 {[%clk 0:00:08]} 32. Rxc5 {[%clk 0:00:09]}  Ra4 {[%clk 0:00:07]} 33. Rc8+ {[%clk 0:00:08]}  Rg8 {[%clk 0:00:07]} 34. Qxf6# {[%clk 0:00:08]} 1-0

[Event "December 19 Early 2023"]
[Site "https://www.chess.com"]
[Date "2023.12.19"]
[Round "2"]
[White "Skatchkov, Valery"]
[Black "Sarana, Alexey"]
[Result "0-1"]
[Board "16"]
[TimeControl "180+1"]
[WhiteFideId "24195812"]
[BlackFideId "24133795"]
[WhiteElo "2320"]
[BlackElo "2707"]
[WhiteTeam "RUS"]
[BlackTeam "SRB"]
[WhiteClock "0:00:24"]
[BlackClock "0:01:45"]

1. d4 {[%clk 0:03:00]}  Nf6 {[%clk 0:02:59]} 2. c4 {[%clk 0:03:00]}  e6 {[%clk 0:03:00]} 3. Nf3 {[%clk 0:02:57]}  d5 {[%clk 0:03:01]} 4. g3 {[%clk 0:02:57]}  Bb4+ {[%clk 0:03:01]} 5. Bd2 {[%clk 0:02:50]}  Be7 {[%clk 0:03:00]} 6. Bg2 {[%clk 0:02:50]}  c6 {[%clk 0:02:59]} 7. Qc2 {[%clk 0:02:42]}  Nbd7 {[%clk 0:02:58]} 8. h4 {[%clk 0:02:36]}  b6 {[%clk 0:02:57]} 9. Bf4 {[%clk 0:02:30]}  Ba6 {[%clk 0:02:57]} 10. Nbd2 {[%clk 0:02:25]}  Rc8 {[%clk 0:02:51]} 11. Qa4 {[%clk 0:02:18]}  Bxc4 {[%clk 0:02:51]} 12. Nxc4 {[%clk 0:02:05]}  b5 {[%clk 0:02:51]} 13. Qxa7 {[%clk 0:01:59]}  bxc4 {[%clk 0:02:48]} 14. O-O {[%clk 0:01:56]}  O-O {[%clk 0:02:46]} 15. b3 {[%clk 0:01:55]}  cxb3 {[%clk 0:02:28]} 16. axb3 {[%clk 0:01:54]}  c5 {[%clk 0:02:29]} 17. Rac1 {[%clk 0:01:43]}  Ne4 {[%clk 0:02:27]} 18. Ne5 {[%clk 0:01:35]}  Nxe5 {[%clk 0:02:23]} 19. Bxe5 {[%clk 0:01:36]}  Nd2 {[%clk 0:02:22]} 20. dxc5 {[%clk 0:01:27]}  Nxb3 {[%clk 0:02:10]} 21. Rc3 {[%clk 0:01:06]}  Nxc5 {[%clk 0:02:02]} 22. Rfc1 {[%clk 0:01:04]}  Ra8 {[%clk 0:02:00]} 23. Qc7 {[%clk 0:00:59]}  Qxc7 {[%clk 0:02:00]} 24. Bxc7 {[%clk 0:01:00]}  Na4 {[%clk 0:01:52]} 25. Rb3 {[%clk 0:00:59]}  Rfc8 {[%clk 0:01:48]} 26. e4 {[%clk 0:00:50]}  Nc5 {[%clk 0:01:47]} 27. Rbc3 {[%clk 0:00:28]}  Rxc7 {[%clk 0:01:45]} 28. exd5 {[%clk 0:00:29]}  exd5 {[%clk 0:01:46]} 29. Bxd5 {[%clk 0:00:30]}  Rd8 {[%clk 0:01:46]} 30. Ba2 {[%clk 0:00:24]}  g6 {[%clk 0:01:45]} 0-1

[Event "December 19 Early 2023"]
[Site "https://www.chess.com"]
[Date "2023.12.19"]
[Round "2"]
[White "Tabatabaei, M. Amin"]
[Black "Lund, Gunnar"]
[Result "1-0"]
[Board "17"]
[TimeControl "180+1"]
[WhiteFideId "12521213"]
[BlackFideId "1520814"]
[WhiteElo "2573"]
[BlackElo "2233"]
[WhiteTeam "IRI"]
[BlackTeam "NOR"]
[WhiteClock "0:00:10"]
[BlackClock "0:00:04"]

1. e4 {[%clk 0:03:00]}  d6 {[%clk 0:02:59]} 2. d4 {[%clk 0:03:00]}  Nf6 {[%clk 0:02:57]} 3. Nc3 {[%clk 0:03:01]}  e5 {[%clk 0:02:57]} 4. Nf3 {[%clk 0:03:00]}  exd4 {[%clk 0:02:58]} 5. Nxd4 {[%clk 0:03:00]}  Be7 {[%clk 0:02:58]} 6. Bf4 {[%clk 0:03:01]}  O-O {[%clk 0:02:57]} 7. Qd2 {[%clk 0:03:01]}  a6 {[%clk 0:02:57]} 8. O-O-O {[%clk 0:02:59]}  b5 {[%clk 0:02:58]} 9. f3 {[%clk 0:02:59]}  c5 {[%clk 0:02:57]} 10. Nf5 {[%clk 0:02:54]}  Bxf5 {[%clk 0:02:41]} 11. exf5 {[%clk 0:02:55]}  Nc6 {[%clk 0:02:17]} 12. Kb1 {[%clk 0:02:55]}  Nd4 {[%clk 0:01:54]} 13. Ne2 {[%clk 0:02:49]}  Nxf5 {[%clk 0:01:44]} 14. g4 {[%clk 0:02:50]}  Nh4 {[%clk 0:01:44]} 15. Bg3 {[%clk 0:02:36]}  Nxf3 {[%clk 0:01:43]} 16. Qe3 {[%clk 0:02:36]}  Ne5 {[%clk 0:01:18]} 17. g5 {[%clk 0:02:36]}  Nfd7 {[%clk 0:01:15]} 18. h4 {[%clk 0:02:34]}  Nc4 {[%clk 0:00:58]} 19. Qc1 {[%clk 0:02:18]}  Qa5 {[%clk 0:00:55]} 20. Nf4 {[%clk 0:02:14]}  Ndb6 {[%clk 0:00:55]} 21. Be1 {[%clk 0:02:06]}  Qa4 {[%clk 0:00:36]} 22. Bg2 {[%clk 0:01:34]}  Rab8 {[%clk 0:00:29]} 23. Rf1 {[%clk 0:01:15]}  b4 {[%clk 0:00:25]} 24. Ka1 {[%clk 0:01:03]}  Ne5 {[%clk 0:00:25]} 25. b3 {[%clk 0:01:02]}  Qa3 {[%clk 0:00:24]} 26. Qxa3 {[%clk 0:00:57]}  bxa3 {[%clk 0:00:25]} 27. Bc3 {[%clk 0:00:57]}  Rfe8 {[%clk 0:00:24]} 28. Nd5 {[%clk 0:00:50]}  Bf8 {[%clk 0:00:21]} 29. Nxb6 {[%clk 0:00:40]}  Rxb6 {[%clk 0:00:22]} 30. Bd5 {[%clk 0:00:41]}  Re7 {[%clk 0:00:22]} 31. h5 {[%clk 0:00:38]}  g6 {[%clk 0:00:16]} 32. h6 {[%clk 0:00:39]}  Rb8 {[%clk 0:00:15]} 33. Rf6 {[%clk 0:00:36]}  Rd8 {[%clk 0:00:15]} 34. Rdf1 {[%clk 0:00:36]}  Rdd7 {[%clk 0:00:16]} 35. R6f4 {[%clk 0:00:28]}  Rc7 {[%clk 0:00:13]} 36. Kb1 {[%clk 0:00:27]}  Nc6 {[%clk 0:00:14]} 37. Ra4 {[%clk 0:00:23]}  Red7 {[%clk 0:00:09]} 38. Rxa3 {[%clk 0:00:19]}  Be7 {[%clk 0:00:09]} 39. Bxf7+ {[%clk 0:00:15]}  Kf8 {[%clk 0:00:09]} 40. Bxg6+ {[%clk 0:00:16]}  Kg8 {[%clk 0:00:09]} 41. Bf7+ {[%clk 0:00:16]}  Kf8 {[%clk 0:00:09]} 42. Be6+ {[%clk 0:00:14]}  Ke8 {[%clk 0:00:10]} 43. g6 {[%clk 0:00:15]}  Bf8 {[%clk 0:00:08]} 44. g7 {[%clk 0:00:13]}  Rxg7 {[%clk 0:00:08]} 45. hxg7 {[%clk 0:00:13]}  Bxg7 {[%clk 0:00:09]} 46. Bxg7 {[%clk 0:00:13]}  Rxg7 {[%clk 0:00:10]} 47. Rxa6 {[%clk 0:00:14]}  Nd4 {[%clk 0:00:10]} 48. Rxd6 {[%clk 0:00:13]}  Nb5 {[%clk 0:00:10]} 49. Rb6 {[%clk 0:00:10]}  Nc3+ {[%clk 0:00:10]} 50. Kb2 {[%clk 0:00:10]}  Ne4 {[%clk 0:00:11]} 51. Bd5 {[%clk 0:00:10]}  Nd2 {[%clk 0:00:04]} 52. Rd1 {[%clk 0:00:10]} 1-0